Cogmind - Beta 10.2 *** ADVENTURER MODE // 2021.05.01 @ 12:36:51 Player: Amao Result: Self-destructed Performance ------------- Evolutions (1) 500 Regions Visited (2) 400 Robots Destroyed (8) 40 Value Destroyed (149) 149 Prototype IDs (0) 0 Alien Tech Used (0) 0 Bonus (0) 0 TOTAL SCORE: 1089 Bonus ------- None Cogmind --------- Core Integrity 370/400 Matter 262/300 Energy 250/250 System Corruption 0% Temperature Cool (9) Movement Rolling (90) Ox1 Location -9/Materials Parts ------- > --- POWER (1) -------- Ion Engine > --- PROPULSION (3) --- Wheel Wheel > --- UTILITY (2) ------ Large Storage Unit Light Armor Plating > --- WEAPON (3) ------- EM Pulse Gun Medium Laser Light Cannon > --- INVENTORY (10) --- Light Ion Engine Light Ion Engine Aluminum Leg Aluminum Leg Heat Sink Targeting Computer Weapon Shielding Light Armor Plating Light Cannon Peak State ------------ > --- POWER ------------ Ion Engine > --- PROPULSION ------- Wheel Wheel > --- UTILITY ---------- Large Storage Unit Light Armor Plating > --- WEAPON ----------- EM Pulse Gun Light Cannon > --- INVENTORY -------- Light Ion Engine Light Ion Engine Aluminum Leg Aluminum Leg Heat Sink Targeting Computer Weapon Shielding Light Armor Plating Medium Laser Light Cannon [Rating: 8] Favorites ----------- Power Ion Engine Engine Ion Engine Propulsion Wheel Wheel Wheel Utility Large Storage Unit Storage Large Storage Unit Protection Light Armor Plating Weapon EM Pulse Gun Energy Gun EM Pulse Gun Ballistic Cannon Light Cannon Build | -11 -10 -9 ------- Run | Scr Mat Mat Slots Evolved 2 | . . 2 Power . | . . . Propulsion 1 | . . 1 Utility . | . . . Weapon 1 | . . 1 Parts Attached 11 | 6 4 1 Power 1 | 1 . . Engine 1 | 1 . . Core . | . . . Reactor . | . . . Propulsion 2 | 2 . . Treads . | . . . Leg . | . . . Wheel 2 | 2 . . Hover . | . . . Flight . | . . . Utility 4 | 1 3 . Device . | . . . Storage 2 | 1 1 . Processor . | . . . Hackware . | . . . Protection 2 | . 2 . Artifact . | . . . Weapon 4 | 2 1 1 Energy Gun 3 | 2 . 1 Energy Cannon . | . . . Ballistic Gun . | . . . Ballistic Cannon 1 | . 1 . Launcher . | . . . Special Weapon . | . . . Impact Weapon . | . . . Slashing Weapon . | . . . Piercing Weapon . | . . . Special Melee Weapon . | . . . Unidentified Prototypes . | . . . Parts Lost . | . . . Power . | . . . Propulsion . | . . . Utility . | . . . Weapon . | . . . Highest Loss Streak . | . . . Average Slot Usage (%) 87 | . 91 82 Engine 12 | . 14 11 Wheel 25 | . 28 22 Storage 13 | . 15 11 Protection 7 | . 4 11 Energy Gun 21 | . 25 16 Ballistic Cannon 5 | . 2 11 Naked Turns . | . . . Heaviest Build 31 | 13 29 31 Greatest Support 20 | 20 20 20 Greatest Overweight (x) 1 | 1 1 1 Average Overweight (x) . | . . 1 Largest Inventory Capacity 12 | 6 12 10 Average Capacity 8 | 5 8 10 Most Carried 10 | 4 9 10 Average Carried 6 | 2 5 9 Final Capacity 10 | 6 10 10 Final Carried 9 | 4 9 9 Class Distribution -------------------- 80% | Mutant 19% | Tank Dominant Class ---------------- Mutant | -10/Materials Tank | -9/Materials Resources | -11 -10 -9 ----------- Run | Scr Mat Mat Matter Collected 312 | 225 39 48 Remotely . | . . . Salvage Created 168 | . 74 94 Parts 14 | . 6 8 Haulers Intercepted . | . . . Recyclers Shooed 1 | . 1 . Parts Field Recycled . | . . . Retrieved Matter . | . . . Parts Self-Destructed . | . . . Prevented . | . . . Kills | -11 -10 -9 ------- Run | Scr Mat Mat Combat Hostiles Destroyed 8 | . 4 4 Guns 4 | . 3 1 Cannons 1 | . . 1 AOE 3 | . 1 2 Classes Destroyed 3 | . 2 1 Swarmer 6 | . 3 3 Grunt 1 | . 1 . Sentry 1 | . . 1 Best Kill Streak 3 | . 3 3 Combat Bots Only 3 | . 3 3 Max Kills in Single Turn 2 | . 1 2 Gunslinging . | . . . Exploded 2 | . 1 2 Melee . | . . . Uniques/NPCs Destroyed . | . . . Combat | -11 -10 -9 -------- Run | Scr Mat Mat Damage Taken 154 | . 65 89 Core 47 | . 17 30 Absorbed by Shields . | . . . Core Remaining (%) 96 | 100 93 . Volleys Fired 14 | . 9 5 Largest 3 | . 2 3 Hottest 125 | . 90 125 Shots Fired 29 | . 18 11 Gun 19 | . 13 6 Cannon 10 | . 5 5 Launcher . | . . . Special . | . . . Kinetic 10 | . 5 5 Thermal 5 | . 4 1 Explosive . | . . . Electromagnetic 14 | . 9 5 Robot Hit Streak 7 | . 7 3 Robot Miss Streak 2 | . 1 2 Penetration Max . | . . . Secondary Targets . | . . . Shots Hit Robots 18 | . 13 5 Core Hits 8 | . 4 4 Critical Hits . | . . . Critical Kills . | . . . Critical Parts Destroyed . | . . . Melee Attacks . | . . . Impact . | . . . Slashing . | . . . Piercing . | . . . Sneak Attacks . | . . . Combat Hostiles . | . . . Follow-up Attacks . | . . . Damage Inflicted 262 | . 144 118 Guns 82 | . 60 22 Cannons 40 | . 20 20 Explosions 140 | . 64 76 Melee . | . . . Ramming . | . . . Kinetic 40 | . 20 20 Thermal 140 | . 64 76 Explosive . | . . . Electromagnetic 82 | . 60 22 Impact . | . . . Slashing . | . . . Piercing . | . . . Highest Corruption . | . . . Average Corruption . | . . . Corruption Purged . | . . . Overload Shots . | . . . Overflow Damage . | . . . Projectiles . | . . . Explosions . | . . . Melee . | . . . Knockbacks . | . . . Impact . | . . . Kinetic . | . . . Secondary . | . . . Self-Inflicted Damage 8 | . 8 . Shots 1 | . 1 . Rammed . | . . . Targets Rammed . | . . . Kicked . | . . . Crushed . | . . . Highest Temperature 132 | . 132 88 Average Temperature 53 | . 64 31 Received Heat Transfer 39 | . 12 27 Siege Activations . | . . . Robots Corrupted . | . . . Combat Hostiles . | . . . Parts Fried . | . . . Impact Corruptions . | . . . Robots Melted . | . . . Combat Hostiles . | . . . Parts Melted . | . . . Heat Transferred 150 | . 50 100 Parts Sabotaged . | . . . Parts Stolen . | . . . Parts Stripped . | . . . Power Chain Reactions 2 | . 1 1 Missiles Intercepted . | . . . Alert | -11 -10 -9 ------- Run | Scr Mat Mat Peak Influence 219 | . 141 219 Initial 50 | . . 50 Average 73 | . 48 139 Maximum Alert Level 1 | . . 1 Low Security (%) 98 | 100 100 94 Level 1 1 | . . 5 Level 2 . | . . . Level 3 . | . . . Level 4 . | . . . Level 5 . | . . . High Security . | . . . Max Security . | . . . Squads Dispatched . | . . . Investigation . | . . . Extermination . | . . . Reinforcement . | . . . Assault . | . . . Garrison . | . . . Intercept . | . . . Construction Impeded . | . . . Haulers Reinforced . | . . . Stealth | -11 -10 -9 --------- Run | Scr Mat Mat Distress Signals 1 | . 1 . Communications Jammed . | . . . Distress Signals . | . . . Times Spotted 21 | . 7 14 Peak Tracking Total 5 | . 3 5 Tactical Retreats 3 | . 2 1 Traps | -11 -10 -9 ------- Run | Scr Mat Mat Traps Triggered . | . . . Indirectly . | . . . Trap Hack Attempts . | . . . Triggered . | . . . Disarmed 6 | . 6 . Reprogrammed . | . . . Reused . | . . . Traps Extracted . | . . . Installed . | . . . Triggered . | . . . Machines | -11 -10 -9 ---------- Run | Scr Mat Mat Machines Disabled 1 | . . 1 Max in Single Turn 1 | . . 1 Machines Sabotaged . | . . . Garrisons Compromised . | . . . Overloaded Fab Kills . | . . . Fab Network Shutdowns . | . . . Hacking | -11 -10 -9 --------- Run | Scr Mat Mat Machines Accessed 5 | . 4 1 Terminals 5 | . 4 1 Fabricators . | . . . Repair Stations . | . . . Recycling Units . | . . . Scanalyzers . | . . . Garrison Access . | . . . Total Hacks 9 | . 8 1 Successful 7 | . 6 1 Failed 2 | . 2 . Catastrophic . | . . . Database Lockouts . | . . . Manual . | . . . Terminals 9 | . 8 1 Fabricators . | . . . Repair Stations . | . . . Recycling Units . | . . . Scanalyzers . | . . . Garrison Access . | . . . Terminal Hacks 7 | . 6 1 Emergency Access Points 2 | . 2 . Locate Traps 2 | . 2 . Disarm Traps 1 | . 1 . Zone Layout 2 | . 1 1 Fabricator Hacks . | . . . Repair Station Hacks . | . . . Recycling Unit Hacks . | . . . Scanalyzer . | . . . Garrison Access Hacks . | . . . Unauthorized Hacks . | . . . Terminals . | . . . Fabricators . | . . . Repair Stations . | . . . Recycling Units . | . . . Scanalyzers . | . . . Garrison Access . | . . . Data Cores Recovered . | . . . Used . | . . . Hacking Detections 2 | . 1 1 Full Trace Events . | . . . Feedback Events . | . . . Feedback Blocked . | . . . Robot Schematics Acquired . | . . . Robots Built . | . . . Matter . | . . . Time . | . . . Total Robot Build Rating . | . . . Part Schematics Acquired . | . . . Parts Built . | . . . Matter . | . . . Time . | . . . Total Part Build Rating . | . . . Parts Repaired . | . . . Time . | . . . Parts Recycled . | . . . Recycled Matter . | . . . Retrieved Matter . | . . . Retrieved Components . | . . . Parts Scanalyzed . | . . . Part Schematics Acquired . | . . . Parts Damaged . | . . . Bothacking | -11 -10 -9 ------------ Run | Scr Mat Mat Used RIF Installer . | . . . Robots Hacked . | . . . Non-combat . | . . . Combat . | . . . Robot Hacks Applied . | . . . Relay Couplers Released . | . . . Robots Rewired . | . . . Allies Hacked . | . . . Hacks Repelled . | . . . Allies | -11 -10 -9 -------- Run | Scr Mat Mat Total Allies . | . . . Largest Group . | . . . Highest-Rated Group . | . . . Highest-Rated Ally . | . . . Total Orders . | . . . Ally Attacks . | . . . Total Damage . | . . . Kills . | . . . Allies Corrupted . | . . . Allies Melted . | . . . Intel | -11 -10 -9 ------- Run | Scr Mat Mat Robot Analysis Total . | . . . Derelict Logs Recovered . | . . . Drone Launches . | . . . Drone Recoveries . | . . . Exploration | -11 -10 -9 ------------- Run | Scr Mat Mat Turns Passed 457 | 56 242 159 Spaces Moved 431 | 49 238 144 Core 11 | 11 . . Treads . | . . . Legs . | . . . Wheels 420 | 38 238 144 Hover . | . . . Flight . | . . . Fastest Speed 50 | 50 80 90 Average Speed 85 | 81 83 90 Slowest Speed 100 | 100 90 90 Overloaded Moves . | . . . Propulsion Burnouts . | . . . Robots Hopped . | . . . Cave-ins Triggered . | . . . Exploration Rate (%) 23 | 4 45 21 Regions Visited 2 Branch Regions . Pre-discovered Areas . | . . . Known Exits Taken . | . . . Unknown Exits Taken 2 | 1 1 . Scrap Searched . | . . . Spaces Dug . | . . . Terrain Destroyed 5 | . 2 3 Melee . | . . . Projectile . | . . . AOE 5 | . 2 3 Terrain Rammed . | . . . Walls Destroyed . | . . . Machines Disabled . | . . . Actions | -11 -10 -9 --------- Run | Scr Mat Mat Total 493 | 64 266 163 Wait 13 | . 1 12 Move 429 | 48 237 144 Hop . | . . . Pick Up 20 | 10 9 1 Fast Attach . | . . . Attach 11 | 6 4 1 Detach 3 | . 3 . Swap . | . . . Drop 3 | . 3 . Fire 14 | . 9 5 Melee . | . . . Ram . | . . . Kick . | . . . Crush . | . . . Escape Stasis . | . . . Rewire . | . . . Trap . | . . . Miscellaneous . | . . . Route ------- -11/Scrapyard -10/Materials (discovered 2 exits: *Mat / [*Min]) -9/Materials History --------- Turn | Location | Event 19 | -11/Scrapyard | Discovered new exit (range 15) 57 | -11/Scrapyard | Entered Materials 105 | -10/Materials | Discovered new exit (range 10) 261 | -10/Materials | Discovered new exit (range 3) 299 | -10/Materials | Entered another Materials area 299 | -9/Materials | Evolved 2 slots: Propulsion x1, Weapon x1 311 | -9/Materials | Build established: Mutant 458 | -9/Materials | Self-destructed Last Messages --------------- Connecting with Terminal... Current location identified: Materials >>Layout(Zone) Retrieving Zone 6B layout... Downloaded map data. S-10 Pest destroyed. Chain reaction triggered in Lgt. Ion Engine. S-10 Pest destroyed. Recycling Unit disabled. Acquired 15 matter. Acquired 14 matter. U-05 Engineer lays Concrete. U-05 Engineer builds a Wall. U-05 Engineer lays Concrete. R-06 Scavenger collects Flight Unit. U-05 Engineer lays Concrete. Acquired 19 matter. U-05 Engineer lays Concrete. K-01 Serf cleans the Repair Station. Connecting with Terminal... Map ----- +----------------------------------------------------+ | ????????????????????????????????? | | ????????????????????????????????? | | ????????????????????????????????? | | ????????????????????????????????? | | ????????????????????????????????? | | ????????????????????????????????? | | ????????????????????????????????? | | ????????????????????????????????? | | ????????????????????????????????? | | ????????????????????????????????? | | ???????? ???????????????????????? | | ???????? ???????????????????????? | | ???????? ???????????????????????? | | ???????? ???????????????????????? | | ????????Y???????????????????????? | | ???????? ???????????????????????? | | ???????? ???????????????????????? | | ???????# #??????????????????????? | | ???????# #??????????????????????? | | ???????# #??????????????????????? | | ???????# #??????????????????????? | | ???????# #??????????????????????? | | ???????# #??????????????????????? | | ######## #??????????????????????? | | # [# #??????????????????????? | | # """ #@########???????????????? | | # """ + +????????? | | # """ # ########???????????????? | | # # #??????????????? # | | # "T" # #?????????????####+##### | | #####/## #?????????????# | | ????# #?????????????# | | ????# #????########## | | ????# #????# # ###### | | ????# #????# # #??# | | ????# #????# # #??# | | ????####g#????# # #??# | | ???????# #????# # #### | | ???????# #????# + + | | ???????# #????# # #### | | ???????# ###### # #??##+ | | ???????+ + # ##### | | ???????# #######+### | | ???????# ???????# ###### | | ???????# #????# #????? | | ???????/ #????# #????? | | ???????# #????# #????? | | ???????### ## #????# #????? | | ?????????# #?# ??? #????? | | ?????????#+#?? ? #????? | +----------------------------------------------------+ Best States ------------- Heat Dissipation 28 Energy Generation 10 Energy Capacity 250 Matter Stores 293 Matter Capacity 300 Sight Range 16 Terrain Scan Density 10 Armor Coverage 150 Resistance: KI 20 Resistance: TH 20 Resistance: EX 20 Resistance: EM 20 Resistance: I 20 Resistance: S 20 Resistance: P 20 Weapon Shielding 33 Evasion (%) 44 Offensive Hacking 10 Item Schematics ----------------- None Robot Schematics ------------------ None Fabricated ------------ Nothing Alien Tech Used ----------------- None Achievements -------------- None Challenges ------------ None Game ------ Seed FocalAbsorptionSteel Manual? 0 Play Time 00:08:10 Cumulative 29.5 hours Start 2020.12.04 @ 04:05:55 End 2021.05.01 @ 12:36:51 Sessions 3 Manual Loads 0 Difficulty Adventurer Special Mode None Game No. 40 Rogue 10 Adventurer 30 Explorer 0 Win Type - Total 1 Types 1/0/0/0/0/0/0/0/0 Lore% 19 Gallery% 34 Achievement% 27 Wizard Run 0 Options --------- ASCII 0 Keyboard 1 Movement Vi Keybinds 0 Fullscreen 1 Font 18/SmallcapsGlow Map View 76x50 Tactical HUD 0 Map Filters NONE Filters NONE Steam 1 RUN: b6240a71-8598-4f7e-ad31-4ea699ca2640